fUST/lending_fUST_20240819
["ID","MTS","AMOUNT","RATE_DAILY","PERIOD"]
[335272852,1724061939298,-587.0,0.00010309,2]
[335272853,1724061939320,-167.107481,0.00010776,2]
[335272854,1724061939340,-167.107481,0.00010794,2]
[335272855,1724061939360,-167.107481,0.00010812,2]
[335272856,1724061939384,-167.107481,0.0001083,2]
[335272857,1724061939405,-289.04,0.00010959,2]
[335272858,1724061939425,-240.86,0.00010959,2]
[335272859,1724061939447,-200.72,0.00010959,2]
[335272860,1724061939468,-823.0,0.0001134,2]
[335272861,1724061939490,-6553.50343855,0.00012356,2]
[335272863,1724062026375,-167.27,0.00010959,2]
[335272864,1724062026396,-127.32807218,0.00010959,2]
[335272920,1724062235824,-159.84514084,9.9e-05,2]
[335272921,1724062235835,-300.0,0.00010958,2]
[335272923,1724062235844,-493.28419035,0.00010959,2]
[335272926,1724062235858,-215.75580965,0.00010959,2]
[335272928,1724062235867,-154.91643045,0.00010959,2]
[335272930,1724062235878,-155.37646185,0.00010959,2]
[335272932,1724062235890,-406.77446256,0.00010959,2]
[335272934,1724062235902,-4721.04600346,0.00010959,2]
[335272936,1724062235912,-356.75448895,0.00010959,2]
[335272939,1724062235928,-225.44791877,0.00010959,2]
[335272942,1724062235948,-2631.20342431,0.00011315,2]
[335272945,1724062235967,-1756.24545313,0.00011315,2]
[335272948,1724062235985,-20512.55112256,0.00011315,2]
[335272950,1724062236002,-10167.1066672,0.00011816,2]
[335272953,1724062236019,-1766.30882102,0.00012551,2]
[335272956,1724062236033,-2861.29649687,0.000129,2]
[335272958,1724062236050,-1651.22887982,0.00012989,3]
[335272961,1724062236065,-2166.25640825,0.00012999,2]
[335272963,1724062236079,-155.00571711,0.00012999,2]
[335272966,1724062236093,-154.69833824,0.00013496,2]
[335272968,1724062236108,-160.05568082,0.00013597,2]
[335272971,1724062236122,-9820.28157674,0.00013598,2]
[335272973,1724062236133,-495.14476956,0.00013599,2]
[335272975,1724062236146,-21704.62452823,0.00013688,2]
[335273024,1724062238445,-16068.04267355,0.00013688,2]
[335273031,1724062238671,-49384.354987,0.00013689,2]
[335273034,1724062238694,-500.0,0.00013698,2]
[335273036,1724062238706,-260.59772466,0.00013698,2]
[335273038,1724062238717,-437.42957799,0.00013698,2]
[335273040,1724062238727,-500.0,0.00013698,2]
[335273042,1724062238738,-500.0,0.00013698,2]
[335273045,1724062238749,-500.0,0.00013698,2]
[335273047,1724062238758,-500.0,0.00013698,2]
[335273049,1724062238768,-500.0,0.00013698,2]
[335273051,1724062238777,-500.0,0.00013698,2]
[335273053,1724062238786,-500.0,0.00013698,2]
[335273055,1724062238796,-500.0,0.00013698,2]
[335273057,1724062238806,-500.0,0.00013698,2]
[335273059,1724062238816,-620.3316477,0.00013698,2]
[335273061,1724062238826,-500.0,0.00013698,2]
[335273063,1724062238836,-500.0,0.00013698,2]
[335273065,1724062238845,-500.0,0.00013698,2]
[335273067,1724062238854,-500.0,0.00013698,2]
[335273069,1724062238864,-500.0,0.00013698,2]
[335273071,1724062238874,-500.0,0.00013698,2]
[335273073,1724062238884,-389.39131105,0.00013698,2]
[335273075,1724062238893,-500.0,0.00013698,2]
[335273076,1724062238905,-500.0,0.00013698,2]
[335273078,1724062238914,-500.0,0.00013698,2]
[335273080,1724062238923,-260.20163678,0.00013698,2]
[335273082,1724062238935,-371.75106598,0.00013698,2]
[335273084,1724062238946,-500.0,0.00013698,2]
[335273086,1724062238955,-500.0,0.00013698,2]
[335273088,1724062238966,-500.0,0.00013698,2]
[335273090,1724062238977,-500.0,0.00013698,2]
[335273092,1724062238987,-495.22543901,0.00013698,2]
[335273094,1724062238996,-500.0,0.00013698,2]
[335273096,1724062239007,-500.0,0.00013698,2]
[335273097,1724062239019,-500.0,0.00013698,2]
[335273099,1724062239029,-500.0,0.00013698,2]
[335273101,1724062239039,-500.0,0.00013698,2]
[335273103,1724062239048,-211.37104301,0.00013698,2]
[335273104,1724062239058,-301.44403106,0.00013698,2]
[335273105,1724062239070,-500.0,0.00013698,2]
[335273106,1724062239081,-302.0163678,0.00013698,2]
[335273107,1724062239093,-500.0,0.00013698,2]
[335273108,1724062239104,-211.01082174,0.00013698,2]
[335273109,1724062239116,-158.06603325,0.00013698,2]
[335273110,1724062239125,-791.26020249,0.00013699,2]
[335273111,1724062239140,-2208.73979751,0.00013699,2]
[335273112,1724062239153,-35359.4473214,0.00013699,2]
[335273113,1724062239163,-1139.053069,0.00013699,2]
[335273114,1724062239173,-500.0,0.00013699,2]
[335273115,1724062239184,-500.0,0.00013699,2]
[335273116,1724062239196,-500.0,0.00013699,2]
[335273117,1724062239207,-500.0,0.00013699,2]
[335273118,1724062239216,-500.0,0.00013699,2]
[335273119,1724062239226,-500.0,0.00013699,2]
[335273120,1724062239235,-600.0,0.00013699,2]
[335273121,1724062239245,-500.0,0.00013699,2]
[335273122,1724062239255,-500.0,0.00013699,2]
[335273123,1724062239264,-500.0,0.00013699,2]
[335273124,1724062239275,-500.0,0.00013699,2]
[335273125,1724062239285,-500.0,0.00013699,2]
[335273126,1724062239296,-500.0,0.00013699,2]
[335273127,1724062239308,-500.0,0.00013699,2]
[335273128,1724062239318,-500.0,0.00013699,2]
[335273129,1724062239329,-500.0,0.00013699,2]
[335273130,1724062239340,-500.0,0.00013699,2]
[335273131,1724062239351,-500.0,0.00013699,2]
[335273132,1724062239361,-500.0,0.00013699,2]
[335273133,1724062239372,-500.0,0.00013699,2]
[335273134,1724062239383,-500.0,0.00013699,2]
[335273135,1724062239393,-500.0,0.00013699,2]
[335273136,1724062239404,-500.0,0.00013699,2]
[335273137,1724062239416,-500.0,0.00013699,2]
[335273138,1724062239426,-500.0,0.00013699,2]
[335273139,1724062239435,-500.0,0.00013699,2]
[335273140,1724062239445,-500.0,0.00013699,2]
[335273141,1724062239454,-500.0,0.00013699,2]
[335273142,1724062239464,-500.0,0.00013699,2]
[335273143,1724062239474,-500.0,0.00013699,2]
[335273144,1724062239483,-500.0,0.00013699,2]
[335273145,1724062239493,-500.0,0.00013699,2]
[335273146,1724062239502,-500.0,0.00013699,2]
[335273147,1724062239511,-500.0,0.00013699,2]
[335273148,1724062239521,-255.82079864,0.00013699,2]
[335273149,1724062239530,-500.0,0.00013699,2]
[335273150,1724062239539,-500.0,0.00013699,2]
[335273151,1724062239549,-500.0,0.00013699,2]
[335273152,1724062239558,-500.0,0.00013699,2]
[335273153,1724062239567,-500.0,0.00013699,2]
[335273154,1724062239576,-500.0,0.00013699,2]
[335273155,1724062239585,-500.0,0.00013699,2]
[335273156,1724062239595,-500.0,0.00013699,2]
[335273157,1724062239604,-418.75,0.00013699,2]
[335273158,1724062239613,-500.0,0.00013699,2]
[335273159,1724062239622,-500.0,0.00013699,2]
[335273160,1724062239631,-500.0,0.00013699,2]
[335273161,1724062239641,-500.0,0.00013699,2]
[335273162,1724062239653,-500.0,0.00013699,2]
[335273163,1724062239662,-500.0,0.00013699,2]
[335273164,1724062239671,-500.0,0.00013699,2]
[335273165,1724062239681,-500.0,0.00013699,2]
[335273166,1724062239692,-500.0,0.00013699,2]
[335273167,1724062239704,-500.0,0.00013699,2]
[335273168,1724062239716,-500.0,0.00013699,2]
[335273169,1724062239727,-500.0,0.00013699,2]
[335273170,1724062239736,-518.75,0.00013699,2]
[335273171,1724062239746,-500.0,0.00013699,2]
[335273172,1724062239758,-500.0,0.00013699,2]
[335273173,1724062239768,-500.0,0.00013699,2]
[335273174,1724062239777,-518.75,0.00013699,2]
[335273175,1724062239787,-500.0,0.00013699,2]
[335273177,1724062239796,-500.0,0.00013699,2]
[335273178,1724062239807,-450.43222365,0.00013699,2]
[335273179,1724062239818,-500.0,0.00013699,2]
[335273180,1724062239829,-500.0,0.00013699,2]
[335273181,1724062239841,-187.5,0.00013699,2]
[335273182,1724062239852,-500.0,0.00013699,2]
[335273183,1724062239863,-500.0,0.00013699,2]
[335273184,1724062239872,-187.5,0.00013699,2]
[335273185,1724062239881,-593.75,0.00013699,2]
[335273186,1724062239891,-593.75,0.00013699,2]
[335273187,1724062239902,-49384.354987,0.00013961,2]
[335273188,1724062239911,-154.68290005,0.00013971,2]
[335273189,1724062239921,-155.05103229,0.00014086,2]
[335273190,1724062239933,-9820.28157672,0.00014174,2]
[335273191,1724062239945,-226.655,0.00014247,2]
[335273192,1724062239954,-166.853774,0.00014247,2]
[335273193,1724062239964,-9659.27545044,0.00014519,2]
[335273194,1724062239973,-9820.28157672,0.00014749,2]
[335273195,1724062239984,-9820.28157672,0.00015325,2]
[335273196,1724062239993,-184.989486,0.00015507,2]
[335273197,1724062240003,-175.306982,0.00015507,2]
[335273198,1724062240014,-171.283466,0.00015507,2]
[335273199,1724062240023,-159.715371,0.00015507,2]
[335273200,1724062240032,-171.024377,0.00015507,2]
[335273201,1724062240042,-168.425643,0.00015507,2]
[335273202,1724062240051,-171.283465,0.00015507,2]
[335273203,1724062240060,-49384.354987,0.00015702,2]
[335273204,1724062240069,-500.0,0.00015712,7]
[335273205,1724062240079,-500.0,0.00015712,7]
[335273206,1724062240088,-500.0,0.00015712,7]
[335273207,1724062240097,-500.0,0.00015712,7]
[335273208,1724062240107,-500.0,0.00015712,7]
[335273209,1724062240116,-500.0,0.00015712,7]
[335273210,1724062240126,-500.0,0.00015712,7]
[335273211,1724062240135,-500.0,0.00015712,7]
[335273212,1724062240145,-500.0,0.00015712,7]
[335273213,1724062240156,-500.0,0.00015712,7]
[335273214,1724062240165,-500.0,0.00015712,7]
[335273215,1724062240174,-500.0,0.00015712,7]
[335273216,1724062240184,-500.0,0.00015712,7]
[335273217,1724062240193,-500.0,0.00015712,7]
[335273218,1724062240203,-500.0,0.00015712,7]
[335273220,1724062240213,-500.0,0.00015712,7]
[335273222,1724062240223,-500.0,0.00015712,7]
[335273224,1724062240232,-500.0,0.00015712,7]
[335273226,1724062240242,-500.0,0.00015712,7]
[335273227,1724062240251,-500.0,0.00015712,7]
[335273228,1724062240260,-500.0,0.00015712,7]
[335273229,1724062240269,-500.0,0.00015712,7]
[335273230,1724062240279,-500.0,0.00015712,7]
[335273231,1724062240288,-500.0,0.00015712,7]
[335273232,1724062240298,-379.47,0.00015712,7]
[335273233,1724062240307,-500.0,0.00015712,7]
[335273235,1724062240316,-500.0,0.00015712,7]
[335273237,1724062240326,-500.0,0.00015712,7]
[335273239,1724062240336,-500.0,0.00015712,7]
[335273241,1724062240345,-500.0,0.00015712,7]
[335273243,1724062240356,-500.0,0.00015712,7]
[335273245,1724062240366,-500.0,0.00015712,7]
[335273247,1724062240375,-500.0,0.00015712,7]
[335273249,1724062240384,-399.33,0.00015712,7]
[335273251,1724062240393,-500.0,0.00015712,7]
[335273253,1724062240404,-1414.0,0.00015872,2]
[335273255,1724062240414,-4166.0,0.00015872,2]
[335273257,1724062240424,-4186.221,0.00015872,2]
[335273259,1724062240436,-1234.22537098,0.0001589,2]
[335273261,1724062240447,-358.190943,0.0001589,2]
[335273264,1724062240459,-159.715371,0.00015894,2]
[335273265,1724062240470,-9820.28157672,0.000159,2]
[335273266,1724062240481,-151.0,0.0001599,2]
[335273267,1724062240491,-198.659333,0.0001599,2]
[335273268,1724062240501,-842.604684,0.0001599,2]
[335273269,1724062240512,-151.216934,0.0001599,2]
[335273270,1724062240522,-309.517257,0.0001599,2]
[335273271,1724062240533,-309.517257,0.0001599,2]
[335273272,1724062240544,-677.925555,0.0001599,2]
[335273273,1724062240554,-677.925555,0.0001599,2]
[335273275,1724062240565,-148153.064961,0.0001599,2]
[335273278,1724062240577,-151.0,0.0001599,2]
[335273280,1724062240588,-1185.556722,0.0001599,2]
[335273282,1724062240597,-1185.556722,0.0001599,2]
[335273284,1724062240607,-151.0,0.0001599,2]
[335273286,1724062240617,-151.0,0.0001599,2]
[335273288,1724062240627,-151.0,0.0001599,2]
[335273290,1724062240636,-151.0,0.0001599,2]
[335273292,1724062240646,-151.0,0.0001599,2]
[335273294,1724062240659,-396.752583,0.0001599,2]
[335273295,1724062240669,-396.752583,0.0001599,2]
[335273296,1724062240678,-1064.519227,0.0001599,2]
[335273298,1724062240688,-135557.46,0.00016,2]
[335273300,1724062240699,-150.112233,0.00016,2]
[335273302,1724062240708,-150.112237,0.00016,2]
[335273304,1724062240718,-191.45061481,0.00016,2]
[335273306,1724062240727,-150.0,0.00016,2]
[335273308,1724062240737,-151.0,0.00016,2]
[335273310,1724062240747,-842.604684,0.00016,2]
[335273312,1724062240757,-309.517257,0.00016,2]
[335273314,1724062240768,-309.517257,0.00016,2]
[335273316,1724062240778,-677.925555,0.00016,2]
[335273318,1724062240788,-677.925555,0.00016,2]
[335273320,1724062240800,-151.0,0.00016,2]
[335273322,1724062240810,-1601.505462,0.00016,2]
[335273324,1724062240820,-1601.505462,0.00016,2]
[335273326,1724062240831,-151.0,0.00016,2]
[335273328,1724062240841,-152.140415,0.00016,2]
[335273330,1724062240850,-1185.556722,0.00016,2]
[335273332,1724062240860,-1185.556722,0.00016,2]
[335273334,1724062240870,-151.0,0.00016,2]
[335273336,1724062240880,-151.0,0.00016,2]
[335273339,1724062240891,-151.0,0.00016,2]
[335273341,1724062240907,-151.0,0.00016,2]
[335273343,1724062240918,-396.752583,0.00016,2]
[335273345,1724062240929,-396.752583,0.00016,2]
[335273348,1724062240944,-747.27476444,0.0001604,2]
[335273350,1724062240955,-600.0,0.00016044,2]
[335273352,1724062240964,-500.0,0.00016073,2]
[335273354,1724062240974,-150.112233,0.000161,2]
[335273356,1724062240984,-150.112233,0.000161,2]
[335273358,1724062240994,-150.112233,0.000162,2]
[335273361,1724062241005,-150.112233,0.000162,2]
[335273363,1724062241016,-600.0,0.00016211,2]
[335273365,1724062241027,-150.0,0.00016212,2]
[335273367,1724062241037,-521.0,0.00016212,2]
[335273369,1724062241049,-5159.49874366,0.00016274,2]
[335273371,1724062241060,-171.024377,0.00016282,2]
[335273374,1724062241071,-159.715371,0.00016282,2]
[335273376,1724062241083,-168.425643,0.00016282,2]
[335273378,1724062241093,-171.283465,0.00016282,2]
[335273380,1724062241103,-100723.30347386,0.000163,3]
[335273382,1724062241113,-150.112233,0.000163,2]
[335273384,1724062241122,-150.112233,0.000163,2]
[335273386,1724062241133,-9679.60148479,0.00016337,2]
[335273388,1724062241144,-1185.556722,0.00016337,2]
[335273390,1724062241160,-1185.556722,0.00016337,2]
[335273392,1724062241175,-151.0,0.00016338,2]
[335273394,1724062241185,-842.604684,0.00016338,2]
[335273396,1724062241194,-309.517257,0.00016338,2]
[335273398,1724062241204,-309.517257,0.00016338,2]
[335273400,1724062241214,-677.925555,0.00016338,2]
[335273402,1724062241224,-677.925555,0.00016338,2]
[335273404,1724062241235,-1601.505462,0.00016338,2]
[335273406,1724062241246,-1601.505462,0.00016338,2]
[335273408,1724062241256,-151.0,0.00016338,2]
[335273410,1724062241266,-10927.83397582,0.00016338,2]
[335273415,1724062241299,-8267.46164964,0.00016338,2]
[335273417,1724062241310,-8622.88601717,0.00016338,2]
[335273419,1724062241319,-243.0161,0.00016356,2]
[335273421,1724062241329,-600.0,0.00016378,2]
[335273423,1724062241339,-6714.79622643,0.00016399,2]
[335273425,1724062241350,-151.0,0.00016399,2]
[335273427,1724062241359,-151.0,0.00016399,2]
[335273429,1724062241369,-151.0,0.00016399,2]
[335273431,1724062241378,-396.752583,0.00016399,2]
[335273433,1724062241388,-396.752583,0.00016399,2]
[335273436,1724062241398,-150.112233,0.000164,2]
[335273438,1724062241412,-150.112233,0.000164,2]
[335273440,1724062241421,-591.943647,0.000164,6]
[335273442,1724062241432,-150.0,0.00016416,2]
[335273444,1724062241441,-178.886012,0.00016418,2]
[335273446,1724062241451,-178.886012,0.00016418,2]
[335273448,1724062241463,-151.0,0.00016418,2]
[335273450,1724062241473,-151.0,0.00016418,2]
[335273452,1724062241483,-151.0,0.00016418,2]
[335273454,1724062241492,-178.886012,0.00016428,2]
[335273456,1724062241502,-178.886012,0.00016428,2]
[335273458,1724062241513,-151.0,0.00016428,2]
[335273460,1724062241522,-151.0,0.00016428,2]
[335273462,1724062241531,-151.0,0.00016428,2]
[335273464,1724062241541,-203.66534114,0.00016437,2]
[335273467,1724062241551,-5993.21173941,0.00016437,2]
[335273469,1724062241563,-151.0,0.00016437,2]
[335273471,1724062241573,-154.69833824,0.00016438,2]
[335273473,1724062241583,-500.0,0.00016438,2]
[335273475,1724062241594,-200.0,0.00016438,2]
[335273477,1724062241605,-500.0,0.00016438,2]
[335273479,1724062241615,-500.0,0.00016438,2]
[335273481,1724062241625,-500.0,0.00016438,2]
[335273483,1724062241634,-500.0,0.00016438,2]
[335273485,1724062241643,-500.0,0.00016438,2]
[335273486,1724062241668,-506.66604033,0.00016438,2]
[335273487,1724062241680,-500.0,0.00016438,2]
[335273488,1724062241691,-500.0,0.00016438,2]
[335273489,1724062241700,-500.0,0.00016438,2]
[335273490,1724062241711,-514.38428904,0.00016438,2]
[335273491,1724062241720,-500.0,0.00016438,2]
[335273492,1724062241731,-500.0,0.00016438,2]
[335273493,1724062241741,-500.0,0.00016438,2]
[335273494,1724062241751,-500.0,0.00016438,2]
[335273495,1724062241761,-500.0,0.00016438,2]
[335273496,1724062241771,-412.2194398,0.00016438,2]
[335273497,1724062241780,-411.61122609,0.00016438,2]
[335273498,1724062241790,-263.16209233,0.00016438,2]
[335273500,1724062241800,-500.0,0.00016438,2]
[335273502,1724062241810,-500.0,0.00016438,2]
[335273504,1724062241820,-500.0,0.00016438,2]
[335273506,1724062241830,-500.0,0.00016438,2]
[335273508,1724062241839,-519.29215306,0.00016438,2]
[335273527,1724062242015,-500.0,0.00016438,2]
[335273529,1724062242027,-500.0,0.00016438,2]
[335273531,1724062242038,-500.0,0.00016438,2]
[335273534,1724062242049,-662.03,0.00016438,2]
[335273536,1724062242060,-509.04117585,0.00016438,2]
[335273538,1724062242071,-510.98672459,0.00016438,2]
[335273540,1724062242081,-500.0,0.00016438,2]
[335273542,1724062242091,-500.0,0.00016438,2]
[335273544,1724062242102,-500.0,0.00016438,2]
[335273546,1724062242113,-500.0,0.00016438,2]
[335273549,1724062242123,-500.0,0.00016438,2]
[335273551,1724062242135,-500.0,0.00016438,2]
[335273553,1724062242147,-500.0,0.00016438,2]
[335273555,1724062242160,-500.0,0.00016438,2]
[335273557,1724062242170,-505.55650891,0.00016438,2]
[335273560,1724062242179,-518.21978141,0.00016438,2]
[335273562,1724062242189,-500.0,0.00016438,2]
[335273564,1724062242200,-500.0,0.00016438,2]
[335273566,1724062242211,-500.0,0.00016438,2]
[335273568,1724062242223,-500.0,0.00016438,2]
[335273570,1724062242232,-500.0,0.00016438,2]
[335273572,1724062242242,-170.55211134,0.00016438,2]
[335273574,1724062242251,-500.0,0.00016438,2]
[335273576,1724062242261,-504.88832304,0.00016438,2]
[335273578,1724062242271,-500.0,0.00016438,2]
[335273580,1724062242280,-500.0,0.00016438,2]
[335273582,1724062242289,-500.0,0.00016438,2]
[335273584,1724062242298,-500.0,0.00016438,2]
[335273586,1724062242308,-500.0,0.00016438,2]
[335273588,1724062242318,-431.66523397,0.00016438,2]
[335273590,1724062242328,-500.0,0.00016438,2]
[335273592,1724062242337,-500.0,0.00016438,2]
[335273594,1724062242346,-505.21757184,0.00016438,2]
[335273596,1724062242355,-500.0,0.00016438,2]
[335273598,1724062242364,-500.0,0.00016438,2]
[335273600,1724062242374,-155.9040371,0.00016438,2]
[335273601,1724062242384,-396.09400744,0.00016438,2]
[335273603,1724062242395,-500.0,0.00016438,2]
[335273605,1724062242409,-500.0,0.00016438,2]
[335273607,1724062242419,-500.0,0.00016438,2]
[335273609,1724062242430,-500.0,0.00016438,2]
[335273611,1724062242441,-196.24412175,0.00016438,2]
[335273614,1724062242455,-500.0,0.00016438,2]
[335273616,1724062242465,-504.13587495,0.00016438,2]
[335273618,1724062242476,-500.0,0.00016438,2]
[335273620,1724062242487,-500.0,0.00016438,2]
[335273622,1724062242497,-500.0,0.00016438,2]
[335273624,1724062242507,-500.0,0.00016438,2]
[335273626,1724062242519,-500.0,0.00016438,2]
[335273628,1724062242529,-500.0,0.00016438,2]
[335273630,1724062242540,-855.01,0.00016438,2]
[335273632,1724062242551,-500.0,0.00016438,2]
[335273635,1724062242562,-500.0,0.00016438,2]
[335273637,1724062242572,-725.95,0.00016438,2]
[335273639,1724062242582,-500.0,0.00016438,2]
[335273641,1724062242592,-500.0,0.00016438,2]
[335273643,1724062242603,-500.0,0.00016438,2]
[335273645,1724062242613,-500.0,0.00016438,2]
[335273647,1724062242623,-500.0,0.00016438,2]
[335273649,1724062242633,-500.0,0.00016438,2]
[335273651,1724062242646,-500.0,0.00016438,2]
[335273653,1724062242662,-500.0,0.00016438,2]
[335273655,1724062242671,-487.14935266,0.00016438,2]
[335273657,1724062242681,-291.96317633,0.00016438,2]
[335273659,1724062242690,-500.0,0.00016438,2]
[335273661,1724062242700,-500.0,0.00016438,2]
[335273663,1724062242709,-500.0,0.00016438,2]
[335273665,1724062242719,-500.0,0.00016438,2]
[335273667,1724062242728,-500.0,0.00016438,2]
[335273669,1724062242738,-500.0,0.00016438,2]
[335273671,1724062242747,-500.0,0.00016438,2]
[335273673,1724062242757,-645.93,0.00016438,2]
[335273675,1724062242767,-500.0,0.00016438,2]
[335273677,1724062242776,-500.0,0.00016438,2]
[335273679,1724062242786,-500.0,0.00016438,2]
[335273681,1724062242795,-500.0,0.00016438,2]
[335273683,1724062242805,-515.80923211,0.00016438,2]
[335273685,1724062242815,-500.0,0.00016438,2]
[335273687,1724062242825,-806.62,0.00016438,2]
[335273689,1724062242835,-500.0,0.00016438,2]
[335273691,1724062242845,-500.0,0.00016438,2]
[335273693,1724062242855,-500.0,0.00016438,2]
[335273695,1724062242865,-500.0,0.00016438,2]
[335273697,1724062242875,-500.0,0.00016438,2]
[335273699,1724062242886,-500.0,0.00016438,2]
[335273701,1724062242896,-439.52071861,0.00016438,2]
[335273723,1724062243077,-173.94928139,0.00016438,2]
[335273726,1724062243087,-500.0,0.00016438,2]
[335273728,1724062243097,-992.95,0.00016438,2]
[335273730,1724062243109,-500.0,0.00016438,2]
[335273732,1724062243119,-504.74937411,0.00016438,2]
[335273735,1724062243130,-500.0,0.00016438,2]
[335273737,1724062243140,-500.0,0.00016438,2]
[335273739,1724062243149,-500.0,0.00016438,2]
[335273741,1724062243168,-499.999999,0.00016438,2]
[335273743,1724062243177,-500.0,0.00016438,2]
[335273745,1724062243187,-500.0,0.00016438,2]
[335273747,1724062243198,-500.0,0.00016438,2]
[335273749,1724062243208,-500.0,0.00016438,2]
[335273751,1724062243219,-500.0,0.00016438,2]
[335273753,1724062243228,-87.00652894,0.00016438,2]
[335273762,1724062243408,-2861.29649685,0.00013722,2]
[335273763,1724062243419,-1064.519227,0.00016,2]
[335273764,1724062243430,-412.99347106,0.00016438,2]
[335273765,1724062243440,-500.0,0.00016438,2]
[335273766,1724062243450,-178.886012,0.00016438,2]
[335273767,1724062243460,-178.886012,0.00016438,2]
[335273770,1724062243471,-178.886012,0.00016438,2]
[335273772,1724062243481,-178.886012,0.00016438,2]
[335273774,1724062243494,-500.0,0.00016438,2]
[335273775,1724062243505,-178.886012,0.00016438,2]
[335273777,1724062243516,-178.886012,0.00016438,2]
[335273779,1724062243527,-500.0,0.00016438,2]
[335273781,1724062243537,-178.886012,0.00016438,2]
[335273782,1724062243547,-178.886012,0.00016438,2]
[335273784,1724062243557,-500.17644643,0.00016438,2]
[335273785,1724062243567,-781.91,0.00016438,2]
[335273787,1724062243576,-415.53294663,0.00016438,2]
[335273789,1724062243586,-500.0,0.00016438,2]
[335273790,1724062243597,-500.0,0.00016438,2]
[335273792,1724062243607,-500.0,0.00016438,2]
[335273794,1724062243618,-500.0,0.00016438,2]
[335273796,1724062243628,-1898.03,0.00016438,2]
[335273798,1724062243638,-500.0,0.00016438,2]
[335273800,1724062243647,-500.0,0.00016438,2]
[335273801,1724062243664,-532.12,0.00016438,2]
[335273803,1724062243675,-621.32,0.00016438,2]
[335273805,1724062243685,-500.0,0.00016438,2]
[335273807,1724062243697,-500.0,0.00016438,2]
[335273809,1724062243706,-500.0,0.00016438,2]
[335273811,1724062243717,-506.37358524,0.00016438,2]
[335273812,1724062243728,-500.0,0.00016438,2]
[335273814,1724062243739,-610.97,0.00016438,2]
[335273816,1724062243748,-505.32476794,0.00016438,2]
[335273817,1724062243759,-592.2,0.00016438,2]
[335273819,1724062243769,-500.0,0.00016438,2]
[335273821,1724062243779,-500.0,0.00016438,2]
[335273823,1724062243789,-500.0,0.00016438,2]
[335273825,1724062243800,-500.0,0.00016438,2]
[335273827,1724062243810,-500.0,0.00016438,2]
[335273828,1724062243820,-500.0,0.00016438,2]
[335273829,1724062243831,-500.0,0.00016438,2]
[335273830,1724062243841,-500.0,0.00016438,2]
[335273831,1724062243851,-525.85,0.00016438,2]
[335273832,1724062243868,-622.24,0.00016438,2]
[335273833,1724062243881,-500.0,0.00016438,2]
[335273834,1724062243893,-500.0,0.00016438,2]
[335273835,1724062243906,-500.0,0.00016438,2]
[335273836,1724062243916,-500.0,0.00016438,2]
[335273837,1724062243927,-503.5830886,0.00016438,2]
[335273838,1724062243938,-500.0,0.00016438,2]
[335273839,1724062243950,-449.00996607,0.00016438,2]
[335273840,1724062243960,-500.0,0.00016438,2]
[335273841,1724062243971,-500.0,0.00016438,2]
[335273842,1724062243981,-500.0,0.00016438,2]
[335273843,1724062243992,-917.08,0.00016438,2]
[335273844,1724062244002,-500.0,0.00016438,2]